Cogmind - Beta 16 @@@ ROGUE MODE // 2025.11.13 @ 22:29:30 Player: Demo Result: Destroyed by H-77 Assassin with Coil Gun Performance ------------- Evolutions (7) 3500 Regions Visited (8) 1600 Robots Destroyed (145) 725 Value Destroyed (6318) 6318 Prototype IDs (23) 460 Alien Tech Used (0) 0 Bonus (7746) 7746 TOTAL SCORE: 20349 Bonus ------- Triggered High Security 500 High Alert Combat Kills 2797 Follower Combat Kills 1818 Delivered SUBCON Basin 2000 Registered with UFD 300 Met Optimus in HQ 500 Friendly Fire -169 Cogmind --------- Core Integrity 0/1300 Matter 113/300 Energy 99/100 System Corruption 26% Temperature Cool (0) Movement Core (50) Location -3/Research Parts ------- > --- POWER (2) -------- (None) > --- PROPULSION (4) --- (None) > --- UTILITY (11) ----- (None) > --- WEAPON (4) ------- (None) > --- INVENTORY (5) ---- Experimental Matter Compressor (181) Advanced Sensor Array Advanced Transmission Jammer Improved Remote Datajack CPS Tube (1) Peak State ------------ > --- POWER ------------ Antimatter Reactor Heavy Antimatter Reactor > --- PROPULSION ------- Overtuned Huge Scrapsphere Overtuned Huge Scrapsphere > --- UTILITY ---------- Scrap Suit Experimental Cooling System High-capacity Storage Unit Advanced Sensor Array Advanced Signal Interpreter Makeshift Salvage Targeting Computer Advanced Transmission Jammer A0-MCA's Component Scanner Tech Extrapolator Long-range Tractor Beam > --- WEAPON ----------- Overtuned Coil Gun Overtuned Coil Gun Neutron Missile Launcher Neutron Missile Launcher > --- INVENTORY -------- Overtuned Huge Scrapsphere Scrap Suit Experimental Cooling System Large Storage Unit Experimental Matter Compressor Seismic Detector Armor Integrity Analyzer Kinecellerator Improved Weapon Cycler Advanced Transmission Jammer Improved Medium Armor Plating Advanced Hardlight Generator Gamma Rifle Railgun Improved Remote Datajack Improved Plasma Cutter CPS Tube Botcube [Rating: 137] Favorites ----------- Power Subdweller Power Source Engine Subdweller Power Source Power Core Light Neutrino Core Reactor Antimatter Reactor Propulsion Compact Wheel Treads Light Treads Leg Flexi-carbon Leg Wheel Compact Wheel Flight Unit Cooled Cesium-ion Thruster Utility High-capacity Storage Unit Device Scrap Suit Storage High-capacity Storage Unit Processor Tech Extrapolator Hackware Hacking Suite Protection Improved Medium Armor Plating Weapon Overtuned Coil Gun Energy Gun Lightning Gun Energy Cannon Subdweller Beam Cannon Ballistic Gun Overtuned Coil Gun Ballistic Cannon Battle Cannon Launcher Neutron Missile Launcher Special Weapon CPS Tube Build | -11 -10 -10 -10 -7 -7 -5 -4 -3 ------- Run | Yrd Mat Min Sub Rec Scr Fac Fac Res Slots Evolved 14 | . . . . . . 10 2 2 Power 1 | . . . . . . 1 . . Propulsion 2 | . . . . . . 2 . . Utility 9 | . . . . . . 7 1 1 Weapon 2 | . . . . . . . 1 1 Parts Attached 113 | 2 . 2 9 11 3 47 6 33 Power 16 | . . 1 1 2 . 6 2 4 Engine 6 | . . 1 1 2 . 2 . . Core 4 | . . . . . . 4 . . Reactor 6 | . . . . . . . 2 4 Propulsion 19 | 2 . . 2 5 . 7 . 3 Treads 2 | 2 . . . . . . . . Leg 2 | . . . . . . 1 . 1 Wheel 14 | . . . 2 5 . 5 . 2 Hover . | . . . . . . . . . Flight 1 | . . . . . . 1 . . Utility 50 | . . 1 2 1 1 26 3 16 Device 29 | . . . . . . 13 2 14 Storage 6 | . . . 1 . 1 3 1 . Processor 8 | . . . . . . 8 . . Hackware 1 | . . . . . . 1 . . Protection 6 | . . 1 1 1 . 1 . 2 Artifact . | . . . . . . . . . Weapon 28 | . . . 4 3 2 8 1 10 Energy Gun 5 | . . . . . 1 . . 4 Energy Cannon 3 | . . . 1 . . 2 . . Ballistic Gun 10 | . . . 1 2 . 4 1 2 Ballistic Cannon 4 | . . . 2 1 . . . 1 Launcher 4 | . . . . . 1 1 . 2 Special Weapon 2 | . . . . . . 1 . 1 Impact Weapon . | . . . . . . . . . Slashing Weapon . | . . . . . . . . . Piercing Weapon . | . . . . . . . . . Special Melee Weapon . | . . . . . . . . . Unidentified Prototypes . | . . . . . . . . . Corrupted Parts 3 | . . . . . . 3 . . System Corruption 20 | . . . . . . 20 . . Parts Lost 59 | . . . . 6 . 20 . 33 Power 7 | . . . . 1 . 2 . 4 Propulsion 11 | . . . . 2 . 6 . 3 Utility 22 | . . . . . . 9 . 13 Weapon 19 | . . . . 3 . 3 . 13 Highest Loss Streak 18 | . . . . 4 . 18 . 13 To Critical Strikes . | . . . . . . . . . Average Backups 12 | . . 3 4 11 20 14 14 15 Power . | . . . . . . . . . Propulsion 2 | . . . 2 3 2 1 1 . Utility 6 | . . . . 5 9 4 8 10 Weapon 2 | . . 1 1 1 4 5 2 1 Tool/Special . | . . . . . . . . . Unused Backups 62 | . . . 6 5 3 25 7 16 Power 3 | . . . . . . . 1 2 Propulsion 10 | . . . 1 1 1 6 1 . Utility 24 | . . . . 1 2 6 5 10 Weapon 18 | . . . 5 3 . 8 . 2 Tool/Special 7 | . . . . . . 5 . 2 Average Slot Usage (%) 85 | . 28 36 82 88 100 77 83 80 Engine 9 | . . . 12 14 14 4 . . Reactor 1 | . . . . . . . 5 8 Treads 5 | . 28 28 25 . . . . . Wheel 15 | . . . 2 27 28 12 10 8 Device 7 | . . . . . . 16 20 22 Storage 7 | . . . 1 14 14 5 5 3 Processor 5 | . . . . . . 14 21 16 Protection 7 | . . 8 12 3 14 3 . 1 Energy Gun 1 | . . . . . 5 . . 4 Energy Cannon 2 | . . . 9 . . 2 . . Ballistic Gun 7 | . . . . 7 14 6 15 10 Ballistic Cannon 9 | . . . 16 20 8 . . . Peak Build Rating 137 | 2 2 3 28 28 28 100 116 137 Average Rating 48 | 1 2 2 13 17 25 72 114 121 On Entrance 33 | . 2 2 3 28 24 28 100 116 Avg Prop Armor Cover (%) 26 | 41 41 33 24 3 . 16 . 3 Naked Turns 24 | . . . . . . . . 24 Heaviest Build 133 | . . 5 51 67 107 126 90 133 Greatest Support 58 | 3 3 3 40 36 32 58 40 40 Greatest Overweight (x) 5 | . . 1 5 5 3 5 2 5 Average Overweight (x) 1 | . . . . 1 2 1 1 2 Largest Inventory Capacity 25 | 5 5 5 20 20 25 25 20 20 Average Capacity 16 | 5 5 5 6 20 21 17 17 19 Most Carried 25 | . . 4 20 20 25 25 20 20 Average Carried 15 | . . 3 6 14 21 17 17 18 Final Capacity 25 | 5 5 5 20 20 25 15 20 5 Final Carried 25 | . . 4 20 20 25 15 20 5 Scrap Suit Usage (%) 10 | . . . . . . 1 1 62 Parts Cannibalized 13 | . . . . . . 4 . 9 Class Distribution -------------------- 39% | Commander-Mutant 26% | Scavenger-Scrapper 19% | Mutant 13% | Subdweller-Mutant Dominant Class ---------------- Mutant | -10/Materials Mutant | -10/Mines Subdweller-Mutant | -10/Subcaves Commander-Mutant | -7/Recycling Commander-Mutant | -7/Scraptown Scavenger-Scrapper | -5/Factory Scavenger-Scrapper | -4/Factory Scavenger-Scrapper | -3/Research Resources | -11 -10 -10 -10 -7 -7 -5 -4 -3 ----------- Run | Yrd Mat Min Sub Rec Scr Fac Fac Res Matter Collected 5189 | 220 . 10 390 684 30 1893 279 1683 Remotely 1553 | . . . . . . 1168 . 385 Salvage Created 7706 | . . . 307 1466 . 2201 356 3376 Parts 346 | . . . 23 25 . 99 20 179 Haulers Intercepted 4 | . . . . . . 2 1 1 Recyclers Shooed 11 | . . . . 6 . 3 . 2 Parts Field Recycled . | . . . . . . . . . Retrieved Matter . | . . . . . . . . . Parts Self-Destructed 13 | . . . 13 . . . . . Prevented . | . . . . . . . . . Parts Restored . | . . . . . . . . . Kills | -11 -10 -10 -10 -7 -7 -5 -4 -3 ------- Run | Yrd Mat Min Sub Rec Scr Fac Fac Res Combat Hostiles Destroyed 95 | . . . 7 6 . 32 3 47 Guns 37 | . . . . . . 13 3 21 Cannons 27 | . . . 7 6 . 6 . 8 AOE 27 | . . . . . . 12 . 15 Classes Destroyed 22 | . . . 4 5 . 10 . 3 Worker 13 | . . . . . . 6 1 6 Builder 12 | . . . . . . 1 . 11 Tunneler 2 | . . . . 1 . . . 1 Hauler 4 | . . . . . . 2 1 1 Recycler 15 | . . . . 11 . 2 . 2 Mechanic 2 | . . . . . . 2 . . Turret 1 | . . . 1 . . . . . Watcher 1 | . . . . . . 1 . . Swarmer 9 | . . . 1 . . 5 1 2 Saboteur 1 | . . . . . . . . 1 Grunt 35 | . . . . . . 20 . 15 Brawler 4 | . . . . 3 . . . 1 Duelist 2 | . . . . . . 1 . 1 Sentry 6 | . . . . 2 . 1 1 2 Demolisher 1 | . . . . 1 . . . . Specialist 2 | . . . . . . . . 2 Hunter 10 | . . . . . . 2 1 7 Programmer 17 | . . . . . . 2 . 15 Heavy 1 | . . . . . . 1 . . Behemoth 1 | . . . . . . . . 1 Artisan 1 | . . . 1 . . . . . Subdweller 6 | . . . 6 . . . . . Best Kill Streak 29 | . . . 2 5 . 11 2 29 Combat Bots Only 16 | . . . 2 3 . 6 1 16 Max Kills in Single Turn 6 | . . . 1 1 . 5 1 6 Gunslinging 1 | . . . . . . 1 . 1 Exploded 4 | . . . . . . 4 . 4 Melee . | . . . . . . . . . Uniques/NPCs Destroyed . | . . . . . . . . . Combat | -11 -10 -10 -10 -7 -7 -5 -4 -3 -------- Run | Yrd Mat Min Sub Rec Scr Fac Fac Res Hostile Shots Fired 955 | . 3 . 42 95 . 197 6 612 Missed 355 | . . . 17 38 . 86 1 213 Hits 600 | . 3 . 25 57 . 111 5 399 Melee 2 | . . . . 2 . . . . Projectile 598 | . 3 . 25 55 . 111 5 399 AOE 4 | . . . . 4 . . . . Critical Strikes 23 | . . . 1 . . 4 . 18 Part Disruptions 2 | . . . . . . . . 2 Damage Taken 9664 | . 64 . 343 468 . 2117 81 6591 Core 1972 | . 18 . 18 123 . 507 . 1306 Absorbed by Shields 1885 | . . . . 277 . 336 . 1272 Ignored by Resistances 75 | . . . . . . . . 75 Regen/Repaired (Parts) 109 | . . . . . . 33 . 76 Core Remaining (%) 71 | 100 . . . . 36 49 100 . Volleys Fired 368 | . . . 46 53 . 110 16 143 Largest 4 | . . . 2 2 . 2 3 4 Hottest 380 | . . . 113 68 . 160 96 380 Shots Fired 802 | . . . 91 100 . 197 38 376 Gun 500 | . . . . 2 . 147 38 313 Cannon 281 | . . . 91 98 . 41 . 51 Launcher 18 | . . . . . . 7 . 11 Special 3 | . . . . . . 2 . 1 Kinetic 542 | . . . 70 100 . 147 38 187 Thermal 234 | . . . 21 . . 41 . 172 Explosive 18 | . . . . . . 7 . 11 Electromagnetic 5 | . . . . . . . . 5 Robot Hit Streak 16 | . . . 6 16 . 8 5 16 Robot Miss Streak 7 | . . . 3 3 . 6 3 7 Penetration Max 1 | . . . . . . 1 1 1 Secondary Targets 5 | . . . . . . 3 . 2 Max Gunslinging Chain 1 | . . . . . . 1 . 1 Shots Hit Robots 400 | . . . 29 66 . 101 16 188 Core Hits 249 | . . . 10 30 . 74 10 125 Critical Kills 7 | . . . . . . 3 1 3 Critical Parts Destroyed 10 | . . . . . . 3 1 6 Critical Strikes 24 | . . . . 4 . 6 2 12 Meltdown 1 | . . . . . . 1 . . Destroy 18 | . . . . . . 5 2 11 Blast 5 | . . . . 4 . . . 1 Melee Attacks . | . . . . . . . . . Impact . | . . . . . . . . . Slashing . | . . . . . . . . . Piercing . | . . . . . . . . . Sneak Attacks . | . . . . . . . . . Combat Hostiles . | . . . . . . . . . Follow-up Attacks . | . . . . . . . . . Damage Inflicted 18522 | . . . 672 1583 . 5623 460 10184 Guns 8253 | . . . . 30 . 2525 460 5238 Cannons 4371 | . . . 668 1553 . 807 . 1343 Explosions 5852 | . . . . . . 2291 . 3561 Melee . | . . . . . . . . . Ramming 46 | . . . 4 . . . . 42 Kinetic 8305 | . . . 423 1583 . 2525 460 3314 Thermal 4640 | . . . 245 . . 1236 . 3159 Explosive 5423 | . . . . . . 1862 . 3561 Electromagnetic 108 | . . . . . . . . 108 Impact . | . . . . . . . . . Slashing . | . . . . . . . . . Piercing . | . . . . . . . . . Highest Corruption 26 | . . . . 1 . 21 . 26 Average Corruption 12 | . . . . 1 . 18 . 12 Corruption Purged . | . . . . . . . . . Corruption Blocked 1 | . . . . . . 1 . . Effects 83 | . . . . 2 . 27 . 54 Message Errors 17 | . . . . 1 . 9 . 7 Matter Fused 21 | . . . . . . 4 . 17 Heat Flow Errors 4 | . . . . . . 2 . 2 Energy Discharges 5 | . . . . . . 1 . 4 Parts Rejected 4 | . . . . . . 2 . 2 Data Loss (minor) 11 | . . . . 1 . 4 . 6 Data Loss (major) 2 | . . . . . . 1 . 1 Misfires 1 | . . . . . . . . 1 Misdirections 8 | . . . . . . 1 . 7 Weapon Failures 10 | . . . . . . 3 . 7 Overload Shots . | . . . . . . . . . Overflow Damage 620 | . . . 13 43 . 399 . 165 Projectiles 81 | . . . 13 43 . . . 25 Explosions 539 | . . . . . . 399 . 140 Melee . | . . . . . . . . . Knockbacks 26 | . . . 5 16 . . . 5 Impact . | . . . . . . . . . Kinetic 23 | . . . 5 14 . . . 4 Secondary 3 | . . . . 2 . . . 1 Self-Inflicted Damage 113 | . . . . . . 37 . 76 Shots 2 | . . . . . . 1 . 1 Rammed 4 | . . . 1 . . 1 . 2 Targets Rammed 4 | . . . 1 . . 1 . 2 Kicked . | . . . . . . . . . Crushed . | . . . . . . . . . Highest Temperature 320 | . . . 1 18 . 270 112 320 Average Temperature 70 | . . . 1 5 . 73 41 78 Received Heat Transfer 1157 | . 21 . 78 96 . 358 . 604 Effects 1 | . . . . . . . . 1 Energy Bleed 1 | . . . . . . . . 1 Siege Activations . | . . . . . . . . . Martial Activations . | . . . . . . . . . Shielding Activations . | . . . . . . . . . Robots Disrupted . | . . . . . . . . . Combat Hostiles . | . . . . . . . . . Robots Corrupted 1 | . . . . . . . . 1 Combat Hostiles . | . . . . . . . . . Parts Fried 1 | . . . . . . . . 1 Impact Corruptions 1 | . . . . . . . . 1 Robots Melted 4 | . . . . . . 1 . 3 Combat Hostiles 4 | . . . . . . 1 . 3 Parts Melted 21 | . . . . . . 2 . 19 Heat Transferred 6514 | . . . 333 . . 1775 . 4406 Parts Sabotaged . | . . . . . . . . . Parts Stolen . | . . . . . . . . . Parts Stripped . | . . . . . . . . . Power Chain Reactions 1 | . . . . . . . . 1 Alert | -11 -10 -10 -10 -7 -7 -5 -4 -3 ------- Run | Yrd Mat Min Sub Rec Scr Fac Fac Res Maximum Alert Level 5 | . . . . 1 . 5 3 5 Low Security (%) 25 | 100 100 100 . 51 . 17 . . Level 1 36 | . . . . 48 . 25 . 48 Level 2 5 | . . . . . . 9 . 12 Level 3 15 | . . . . . . 15 100 5 Level 4 5 | . . . . . . 12 . 8 Level 5 9 | . . . . . . 18 . 16 High Security 2 | . . . . . . . . 8 Max Security . | . . . . . . . . . Peak Influence 2066 | . 30 11 . 280 . 1782 854 2066 Initial 854 | . . 11 . 10 . . 854 423 Average 537 | . 11 1 . 124 . 756 781 832 Influence Increases 6507 | . 45 . 207 722 . 2777 207 2549 Destroy 0b10 Robot/C 2740 | . . . 40 300 . 1200 60 1140 Destroy 0b10 Robot/NC 350 | . . . . 145 . 90 10 105 Destroy Leader 472 | . . . . . . 228 22 222 Allied During Kill 500 | . . . 2 73 . 397 . 28 Successful Hack 17 | . . . . 11 . . 2 4 Select Force Hacks 180 | . . . . 180 . . . . Disable Machine 375 | . . . . . . 240 75 60 Destroy Structure 913 | . . . . 13 . 532 38 330 Partial Spotted 30 | . 15 . . . . . . 15 Lose Combat Pursuer 930 | . 30 . 165 . . 90 . 645 Influence Decreases 4411 | . 15 30 185 546 198 1034 1143 1260 Entered New Map 1502 | . . 19 . 12 198 . 889 384 Time Decay 1809 | . 15 11 165 424 . 414 254 526 Lost Part 590 | . . . . 60 . 200 . 330 Lost Ally 510 | . . . 20 50 . 420 . 20 Squads Dispatched 51 | . 1 . . . . 26 3 21 Investigation 13 | . 1 . . . . 8 1 3 Extermination 8 | . . . . . . 3 1 4 Reinforcement 14 | . . . . . . 8 . 6 Assault 12 | . . . . . . 4 1 7 Garrison 4 | . . . . . . 3 . 1 Intercept . | . . . . . . . . . Searches Triggered . | . . . . . . . . . Construction Impeded 5 | . . . . . . 4 . 1 Haulers Reinforced 3 | . . . . . . 2 . 1 Active Scanning Responses . | . . . . . . . . . Cargo Convoy Interrupts . | . . . . . . . . . Stealth | -11 -10 -10 -10 -7 -7 -5 -4 -3 --------- Run | Yrd Mat Min Sub Rec Scr Fac Fac Res Distress Signals 14 | . . . . . . 7 . 7 Communications Jammed 32 | . . . . . . . . 32 Distress Signals 32 | . . . . . . . . 32 Times Spotted 243 | . 4 . 22 10 . 75 10 122 Peak Tracking Total 19 | . 4 . 5 3 . 11 2 19 Tactical Retreats 29 | . 1 . 10 . . 5 . 13 Traps | -11 -10 -10 -10 -7 -7 -5 -4 -3 ------- Run | Yrd Mat Min Sub Rec Scr Fac Fac Res Traps Triggered 5 | . 2 . . . . . . 3 Indirectly . | . . . . . . . . . Trap Hack Attempts . | . . . . . . . . . Triggered . | . . . . . . . . . Disarmed . | . . . . . . . . . Reprogrammed . | . . . . . . . . . Reused . | . . . . . . . . . Traps Extracted . | . . . . . . . . . Installed . | . . . . . . . . . Triggered . | . . . . . . . . . Machines | -11 -10 -10 -10 -7 -7 -5 -4 -3 ---------- Run | Yrd Mat Min Sub Rec Scr Fac Fac Res Machines Disabled 26 | . . . 1 . . 16 5 4 Max in Single Turn 6 | . . . 1 . . 6 1 1 Machines Repaired . | . . . . . . . . . Machines Dismantled . | . . . . . . . . . Machines Sabotaged . | . . . . . . . . . Overloaded Fab Kills . | . . . . . . . . . Hacking | -11 -10 -10 -10 -7 -7 -5 -4 -3 --------- Run | Yrd Mat Min Sub Rec Scr Fac Fac Res Machines Accessed 30 | . . . 2 8 . 8 5 7 Terminals 10 | . . . . 2 . 1 3 4 Fabricators 2 | . . . . . . 1 . 1 Repair Stations . | . . . . . . . . . Recycling Units 14 | . . . . 6 . 6 1 1 Scanalyzers 2 | . . . . . . . 1 1 Garrison Access . | . . . . . . . . . Total Hacks 58 | . . . 3 14 . 15 8 18 Successful 31 | . . . 3 10 . 7 5 6 Failed 26 | . . . . 3 . 8 3 12 Catastrophic 5 | . . . . 1 . 2 1 1 Database Lockouts 1 | . . . . 1 . . . . Manual 43 | . . . . 13 . 15 3 12 Terminals 25 | . . . . 7 . 2 4 12 Fabricators 5 | . . . . . . 2 . 3 Repair Stations . | . . . . . . . . . Recycling Units 20 | . . . . 7 . 11 1 1 Scanalyzers 5 | . . . . . . . 3 2 Garrison Access . | . . . . . . . . . Terminal Hacks 10 | . . . 3 3 . . 1 3 Record 1 | . . . 1 . . . . . Prototype ID Bank 3 | . . . . 3 . . . . Open Door 1 | . . . 1 . . . . . Emergency Access Points 1 | . . . . . . . . 1 Alert Level 2 | . . . . . . . 1 1 Registered Components 1 | . . . . . . . . 1 Release Object 1 | . . . 1 . . . . . Fabricator Hacks . | . . . . . . . . . Repair Station Hacks . | . . . . . . . . . Recycling Unit Hacks . | . . . . . . . . . Scanalyzer 3 | . . . . . . . 3 . Insert Component 1 | . . . . . . . 1 . Retrieve Study 2 | . . . . . . . 2 . Garrison Access Hacks . | . . . . . . . . . Unauthorized Hacks 17 | . . . . 6 . 7 1 3 Terminals 2 | . . . . . . 1 . 1 Botnet 2 | . . . . . . 1 . 1 Fabricators . | . . . . . . . . . Repair Stations . | . . . . . . . . . Recycling Units 14 | . . . . 6 . 6 1 1 Tunnel 6 | . . . . 6 . . . . Fedlink 6 | . . . . . . 5 1 . Scrapoids 1 | . . . . . . 1 . . Scraphulk 1 | . . . . . . . . 1 Scanalyzers 1 | . . . . . . . . 1 Researchers 1 | . . . . . . . . 1 Garrison Access . | . . . . . . . . . Data Cores Recovered . | . . . . . . . . . Used . | . . . . . . . . . Hacking Detections 14 | . . . . 2 . 3 4 5 Full Trace Events 6 | . . . . 2 . 2 . 2 Feedback Events 3 | . . . . 1 . 1 . 1 Corruption 3 | . . . . 1 . 1 . 1 Feedback Blocked . | . . . . . . . . . Robot Schematics Acquired . | . . . . . . . . . Robots Built . | . . . . . . . . . Authchips . | . . . . . . . . . Time . | . . . . . . . . . Total Robot Build Rating . | . . . . . . . . . Part Schematics Acquired 21 | . . . . . . 14 2 5 Parts Built . | . . . . . . . . . Authchips . | . . . . . . . . . Time . | . . . . . . . . . Total Part Build Rating . | . . . . . . . . . Part Studies Acquired 2 | . . . . . . . 2 . Parts Repaired . | . . . . . . . . . Time . | . . . . . . . . . Parts Recycled . | . . . . . . . . . Recycled Matter . | . . . . . . . . . Retrieved Matter . | . . . . . . . . . Retrieved Components . | . . . . . . . . . Parts Scanalyzed . | . . . . . . . . . Part Schematics Acquired . | . . . . . . . . . Parts Damaged . | . . . . . . . . . Bothacking | -11 -10 -10 -10 -7 -7 -5 -4 -3 ------------ Run | Yrd Mat Min Sub Rec Scr Fac Fac Res Used RIF Installer . | . . . . . . . . . Robots Hacked . | . . . . . . . . . Non-combat . | . . . . . . . . . Combat . | . . . . . . . . . Robot Hacks Applied . | . . . . . . . . . Relay Couplers Released . | . . . . . . . . . Fabnet Peak Effective % . | . . . . . . . . . Robots Rewired 26 | . . . . 26 . . . . Allies Hacked 4 | . . . . . . 4 . . Hacks Repelled . | . . . . . . . . . Allies | -11 -10 -10 -10 -7 -7 -5 -4 -3 -------- Run | Yrd Mat Min Sub Rec Scr Fac Fac Res Total Allies 39 | . . 2 . 26 . 10 . 1 Largest Group 21 | . . 2 2 21 21 21 . 1 Highest-Rated Group 426 | . . 50 50 426 425 425 . 139 Highest-Rated Ally 139 | . . 31 31 40 40 50 . 139 Total Orders 2 | . . . . . . 2 . . GUARD 1 | . . . . . . 1 . . TUNNEL 1 | . . . . . . 1 . . Ally Attacks 194 | . . . 3 13 . 156 . 22 Total Damage 7438 | . . . 64 1190 . 4701 . 1483 Kills 57 | . . . . 13 . 34 . 10 Allies Corrupted 1 | . . . . . . 1 . . Allies Melted . | . . . . . . . . . Intel | -11 -10 -10 -10 -7 -7 -5 -4 -3 ------- Run | Yrd Mat Min Sub Rec Scr Fac Fac Res Active Infowar (turns) 1873 | . . . . . . 191 553 1129 Optics 5 | . . . . . . 5 . . Sensors 1812 | . . . . . . 186 553 1073 Seismic 928 | . . . . . . . . 928 Jamming 1626 | . . . . . . . 541 1085 Robot Analysis Total . | . . . . . . . . . Derelict Logs Recovered 4 | . . . 1 . 3 . . . Drone Launches . | . . . . . . . . . Drone Recoveries . | . . . . . . . . . Exploration | -11 -10 -10 -10 -7 -7 -5 -4 -3 ------------- Run | Yrd Mat Min Sub Rec Scr Fac Fac Res Turns Passed 9596 | 21 53 123 2060 1864 2109 1201 553 1612 Spaces Moved 6725 | 32 105 131 1283 1095 1538 818 542 1181 Core 546 | 32 105 131 185 . . 46 . 47 Treads 978 | . . . 978 . . . . . Legs . | . . . . . . . . . Wheels 5098 | . . . 120 1095 1538 669 542 1134 Hover . | . . . . . . . . . Flight 103 | . . . . . . 103 . . Fastest Speed 35 | 50 50 50 50 105 130 35 80 50 Average Speed 112 | 50 50 50 140 116 135 93 85 90 Slowest Speed 300 | 50 50 100 240 160 145 300 90 120 Overloaded Moves . | . . . . . . . . . Propulsion Burnouts . | . . . . . . . . . Robots Hopped 8 | . . . . . . 8 . . Potential Cave-ins . | . . . . . . . . . Cave-ins Triggered . | . . . . . . . . . Exploration Rate (%) 38 | 2 44 27 39 84 80 22 11 34 Regions Visited 8 Branch Regions 4 Pre-discovered Areas 8 | . . . . 6 1 1 . . Known Exits Taken 2 | . . . . . . 1 1 . Unknown Exits Taken 6 | 1 1 1 1 1 1 . . . Scrap Searched 12 | . . 1 4 . 7 . . . Spaces Dug 37 | . . . 2 . . 6 9 20 Terrain Destroyed 433 | . . . 11 1 . 207 25 189 Melee . | . . . . . . . . . Projectile 200 | . . . 11 1 . 74 25 89 AOE 232 | . . . . . . 133 . 99 Terrain Rammed . | . . . . . . . . . Walls Destroyed . | . . . . . . . . . Machines Disabled . | . . . . . . . . . Actions | -11 -10 -10 -10 -7 -7 -5 -4 -3 --------- Run | Yrd Mat Min Sub Rec Scr Fac Fac Res Total 8259 | 35 104 186 1458 1588 1572 1114 627 1575 Wait 506 | 2 . 49 85 107 12 68 37 146 Move 6703 | 31 104 130 1282 1094 1537 803 541 1181 Hop 6 | . . . . . . 6 . . Pick Up 134 | . . 4 13 27 13 36 15 26 Fast Attach 45 | 2 . 2 3 2 . 30 1 5 Attach 50 | . . . 2 6 . 18 2 22 Detach 5 | . . . . . . 1 1 3 Swap 46 | . . . 7 4 3 6 3 23 Drop 99 | . . 1 13 9 7 35 11 23 Fire 368 | . . . 46 53 . 110 16 143 Melee . | . . . . . . . . . Ram 4 | . . . . . . 1 . 3 Kick . | . . . . . . . . . Crush 1 | . . . 1 . . . . . Escape Stasis . | . . . . . . . . . Rewire 286 | . . . . 286 . . . . Trap . | . . . . . . . . . Miscellaneous 6 | . . . 6 . . . . . Route ------- -11/Scrapyard -10/Materials (discovered 2 exits: [*Mat] / [*Min]) -10/Mines (discovered 2 exits: [*Mat] / *Sub) -10/Subcaves (discovered 2 exits: [*Mat] / *Rec) -7/Recycling -7/Scraptown -5/Factory -4/Factory -3/Research (discovered 2 exits: *Res x2) History --------- Turn | Location | Event 8 | -11/Scrapyard | Discovered new exit (range 14) 22 | -11/Scrapyard | Entered Materials 48 | -10/Materials | Discovered new exit (range 16) 67 | -10/Materials | Discovered new exit (range 16) 75 | -10/Materials | Entered Mines 78 | -10/Mines | Found DCF Scrap (11 items) 109 | -10/Mines | Discovered new exit (range 15) 143 | -10/Mines | Discovered new exit (range 10) 198 | -10/Mines | Entered Subcaves 198 | -10/Subcaves | Accompanied by 2 allies 203 | -10/Subcaves | Led the pair of lost Derelicts to an unsafe place 286 | -10/Subcaves | Discovered new exit (range 9) 287 | -10/Subcaves | Shifting Twisted Machinery released Sub. Beam Cannon 287 | -10/Subcaves | Shifting Twisted Machinery released Battle Cannon 315 | -10/Subcaves | Build established: Mutant 329 | -10/Subcaves | Disturbed a concealed Subdweller 685 | -10/Subcaves | Build established: Subdweller-Mutant 1116 | -10/Subcaves | Shifting Twisted Machinery released Battle Rifle 1117 | -10/Subcaves | Shifting Twisted Machinery released Piercing Trap 1212 | -10/Subcaves | Learned Materials terminal intel 1799 | -10/Subcaves | Ambushed by Subdwellers from Twisted Machinery 1834 | -10/Subcaves | Discovered new exit (range 8) 2012 | -10/Subcaves | Build established: Mutant 2041 | -10/Subcaves | Found SUBCON Basin 2258 | -10/Subcaves | Entered Recycling 2512 | -7/Recycling | Scanned before Scraplab entrance 2528 | -7/Recycling | Entered Scraplab 2538 | -7/Recycling | Discovered new exit (range 3) 3163 | -7/Recycling | P-60 Hacker assimilated allied Fighter 4a 3201 | -7/Recycling | Lost 4 allies 3272 | -7/Recycling | Build established: Commander-Mutant 3608 | -7/Recycling | Core integrity fell below 50% 3642 | -7/Recycling | Lost 4 parts (1p1n2w) 4122 | -7/Recycling | Entered Scraptown 4122 | -7/Scraptown | Accompanied by 21 allies 4122 | -7/Scraptown | System corruption cleaned by C-Scrubber 4211 | -7/Scraptown | Visited UFD Registry 4211 | -7/Scraptown | Registered with UFD as "Chaingunner" 4252 | -7/Scraptown | Visited Research Penetration Think Tank 4284 | -7/Scraptown | Visited Botcube Research 4310 | -7/Scraptown | Visited Chapter 10 4333 | -7/Scraptown | Visited Scrapoid Research Area 4351 | -7/Scraptown | Visited Scrapoid Pod Storage 4368 | -7/Scraptown | Visited Observation Area 4392 | -7/Scraptown | Visited A0-MCA Data Center 4411 | -7/Scraptown | Visited Curators Association 4440 | -7/Scraptown | Visited Science Testing Area 4759 | -7/Scraptown | Scanned Subdweller tech in exchange for log data 4762 | -7/Scraptown | Learned Factory trap positions 4763 | -7/Scraptown | Learned location of Zion (-7) 4765 | -7/Scraptown | Learned Factory stockpile data 4834 | -7/Scraptown | Visited Bundlers 4953 | -7/Scraptown | Visited SPCMW 5071 | -7/Scraptown | Delivered Scrap Shield to a Scientist 5233 | -7/Scraptown | Found Scrapoid Pod 5320 | -7/Scraptown | Found Botcube 5516 | -7/Scraptown | Heard Great Nut preacher, LISTEN AND RECITE! 6020 | -7/Scraptown | Given a B+ rating by A0-MCA 6024 | -7/Scraptown | Found A0-MCA's Component Scanner 6123 | -7/Scraptown | Met Optimus 6123 | -7/Scraptown | Accepted into 0bPrime 6206 | -7/Scraptown | Discovered new exit (range 3) 6231 | -7/Scraptown | Entered Factory 6231 | -5/Factory | Accompanied by 21 allies 6231 | -5/Factory | Evolved 10 slots: Power x1, Propulsion x2, Utility x7 6232 | -5/Factory | Loaded intel: 80 trap records 6254 | -5/Factory | Loaded intel: 8 recycling unit locations 6504 | -5/Factory | Tech Extrapolator generated special schematic: Deep Structural Scanner 6553 | -5/Factory | Lost 3 allies 6571 | -5/Factory | Tech Extrapolator generated special schematic: Machine Rigger 6650 | -5/Factory | Learned location of Protoforge (-3) 6746 | -5/Factory | Garrison activated, responded to threat 6762 | -5/Factory | P-70 Sage assimilated allied Angel 4b 6822 | -5/Factory | Lost 13 allies 6829 | -5/Factory | Scrapoids reinforcements arrived? 6845 | -5/Factory | Attached CPS modules to 05F03-D. 6846 | -5/Factory | Attached CPS modules to 05F06-D. 6857 | -5/Factory | Lost 18 parts (1p6n9u2w) 6867 | -5/Factory | Found Corrupted Scrap Suit 6876 | -5/Factory | System corruption reached 10% 6883 | -5/Factory | Found Scrap Suit 6906 | -5/Factory | Lost 4 allies 7048 | -5/Factory | Scrapoid Pod released 05F11-D (x5) 7074 | -5/Factory | Found Scrap Suit 7101 | -5/Factory | Found Scrap Suit 7116 | -5/Factory | Lost 4 allies 7131 | -5/Factory | First assault squad dispatched 7135 | -5/Factory | Build established: Scavenger-Scrapper 7208 | -5/Factory | Core integrity fell below 50% 7326 | -5/Factory | Discovered new exit (range 3) 7331 | -5/Factory | Identified exit to Factory 7432 | -5/Factory | Entered another Factory area 7432 | -4/Factory | Evolved 2 slots: Utility x1, Weapon x1 7572 | -4/Factory | Discovered new exit (range 15) 7586 | -4/Factory | Identified exit to Research 7885 | -4/Factory | Loaded intel: 8 recycling unit locations 7932 | -4/Factory | First assault squad dispatched 7985 | -4/Factory | Entered Research 7985 | -3/Research | Evolved 2 slots: Utility x1, Weapon x1 8397 | -3/Research | Spotted B-86 Titan 8406 | -3/Research | Destroyed B-86 Titan 8543 | -3/Research | Tech Extrapolator generated special schematic: Energy Deflector 8963 | -3/Research | System corruption reached 10% 8985 | -3/Research | First assault squad dispatched 9018 | -3/Research | Destroyed 16 combat bots 9054 | -3/Research | Lost 7 parts (1p2u4w) 9064 | -3/Research | Discovered new exit (range 12) 9121 | -3/Research | Lost 5 parts (1n1u3w) 9135 | -3/Research | Scraphulk reinforcements arrived 9166 | -3/Research | Attached CPS modules to 03R01-K. 9204 | -3/Research | Found Scrap Suit 9258 | -3/Research | Discovered new exit (range 15) 9297 | -3/Research | Identified exit to Research 9410 | -3/Research | Garrison activated, responded to threat 9463 | -3/Research | High security lockdown imminent 9489 | -3/Research | Destroyed 8 combat bots 9533 | -3/Research | Lost 5 parts (1p3u1w) 9543 | -3/Research | High security lockdown engaged 9573 | -3/Research | Released all parts (9) 9585 | -3/Research | Core integrity fell below 50% 9590 | -3/Research | Spotted B-86 Titan 9591 | -3/Research | Core integrity fell below 20% 9597 | -3/Research | Destroyed by H-77 Assassin with Coil Gun Last Messages --------------- 09571_ Adv. Heat Sink destroyed. 09572_ Lgt. Antimatter Reactor destroyed. 09572_ Ovr. Huge Scrapsphere destroyed. 09573_ Released A0-MCA's Component Scanner. 09573_ Released Adv. Signal Interpreter. 09573_ Released Adv. Heat Sink. 09573_ Released Quantum Rifle. 09573_ Released Lgt. Antimatter Reactor. 09573_ Released Flexi-carbon Leg. 09573_ Released Imp. Weapon Cycler. 09573_ Released Plasma Rifle. 09573_ Released Nova Cannon. 09584_ Slug penetrates Y-72 Warden. 09584_ Penetrated by Slug. 09587_ Slug penetrates Wall. 09588_ System corrupted: Energy discharge (-25). 09590_ Penetrated by Slug. 09590_ Slug penetrates H-77 Assassin. 09590_ Penetrated by Slug. 09590_ Slug penetrates Wall. Map ----- +----------------------------------------------------+ | #??#! ] # #?????????????????????????????????? | | ???# # #?????????????????????????????????? | | ???# """ # #?######??????????????????????????? | | ???# """ # #? ##?????????????????????????? | | ???# """ ! # # #?????????????????????????? | | #??# # # !! #??????????????????????????? | | #??# # + ! #??????????????????????????? | | #??# # # #??????????????????????????? | | #??##?????### # #??????????????????????????? | | #???????????# #?######??????????????????????????? | | #???????????# #?????????????????????????????????? | | #???????????# ##################????????????????? | | #???????????# ""G"" g ????????????????? | | ##????????### "" "" ]g ????????????????? | | #????????# #?????????????????? | | #######+## sY |||###???????????????? | | Y Y ||!BB#???????????????? | | hYh ||!BB#???????????????? | | #######+## ] ;?????????????????? | | #????????# #?????????????????? | | ##???????####+###### #?????????????????? | | ?????????# =## #########?????????? | | ?????????# ;; ?????????? | | ?????????#"" ; ^ ????????? | | ?????????#"" ! ## ????????? | | ?????????#"T ???# %@ ????????? | | ??????????"" ?????########+######+#?????????????? | | ??????????""?????????????????????????????????????? | | ?????????????????????????????????????????????????? | | ??????????????!??????????????????????????????????? | | ?????????????????????????????????????????????????? | | ?????????????????????????????????????????????????? | | ?????????????????????????????????????????????????? | | ?????????????????????????????????????????????????? | | ?????????????????????????????????????????????????? | | ?????????????????????????????????????????????????? | | ?????????????????????????????????????????????????? | | ?????????????????????????????????????????????????? | | ?????????????????????????????????????????????????? | | ?????????????????????????????????????????????????? | | ?????????????????????????????????????????????????? | | ???????????????]??????????????????????????=??????? | | ?????????????????????????????????????????????????? | | ?????????????????????????????????????????????????? | | ?????????????????????????????????????????????????? | | ?????????????????????????????????????????????????? | | ?????????????????????????????????????????????????? | | ?????????????????????????????????????????????????? | | ?????????????????????????????????????????????????? | | ?????????????????????????????????????????????????? | +----------------------------------------------------+ Best States ------------- Heat Dissipation 179 Energy Generation 47 Energy Capacity 650 Matter Stores 300 Matter Capacity 300 Sight Range 16 Robot Scan Range 16 Terrain Scan Density 10 Jamming Range 16 Corruption Block 2 Armor Coverage 800 Resistance: TH 10 Point Defense Rating 80 Weapon Cycling 20 Evasion (%) 63 Recoil Reduction 2 Energy Filtering 30 Kinecelleration 30 Salvage Targeting 4 Offensive Hacking 10 Item Schematics ----------------- Mak. Coolant Network | -5/Factory | Extrapolated Mak. Leg | -5/Factory | Extrapolated Deep Structural Scanner | -5/Factory | Extrapolated Machine Rigger | -5/Factory | Extrapolated Beamcaster | -5/Factory | Extrapolated Mak. Power Source | -5/Factory | Extrapolated Mak. Weapon Shielding | -5/Factory | Extrapolated Mak. Laser | -5/Factory | Extrapolated Battle Cannon | -5/Factory | Extrapolated Multitool | -5/Factory | Extrapolated 0b10 Decoder Chip [Skirmisher] | -5/Factory | Extrapolated Mak. Core Shielding | -5/Factory | Extrapolated Mak. Propulsion Shielding | -5/Factory | Extrapolated Mak. Axe | -5/Factory | Extrapolated Mak. Transmission Jammer | -4/Factory | Extrapolated Mak. System Shield | -4/Factory | Extrapolated Mak. Shrapnel Gun | -3/Research | Extrapolated Mak. Heavy Armor Plating | -3/Research | Extrapolated Energy Deflector | -3/Research | Extrapolated Multireflex Exoskeleton | -3/Research | Extrapolated Enh. Multireflex Exoskeleton | -3/Research | Extrapolated Robot Schematics ------------------ None Fabricated ------------ Nothing Repaired ---------- Nothing Studied --------- Antimatter Reactor | -4/Factory | Hacked Imp. Remote Datajack | -4/Factory | Hacked Alien Tech Used ----------------- None Achievements -------------- Inventory Pressure Overclocked Challenges ------------ None Game ------ Seed GravmagAluminumRecalibrator Manual? 0 Play Time 01:22:18 Cumulative 403.2 hours Start 2025.11.13 @ 20:29:36 End 2025.11.13 @ 22:29:30 Sessions 3 Manual Loads 0 Difficulty Rogue Special Mode None Game No. 374 Rogue 374 Adventurer 0 Explorer 0 Win Type - Total 3 Types 2/1/0/0/0/0/0/0/0/0 Lore% 85 Gallery% 84 Achievement% 63 Wizard Run 0 Options --------- Layout 1 ASCII 0 Keyboard 0 Movement Numpad Keybinds 0 Fullscreen 1 Font 24/Smallcaps Map View 50x35 Zoom Use 0% Tactical HUD 1 Map Filters NONE Filters NONE Steam 1 RUN: b9c1e2ba-0c72-4e38-8bcc-f1e0d824fda3